Cogmind - Beta 16.1 *** ADVENTURER MODE // 2026.03.03 @ 22:59:12 // Winter2019/RPGLIKE Player: Noname Result: Destroyed by G-67 Veteran with Plasma Rifle Performance ------------- Evolutions (6) 3000 Regions Visited (20) 4000 Robots Destroyed (203) 1015 Value Destroyed (9816) 9816 Prototype IDs (49) 980 Alien Tech Used (0) 0 Bonus (2404) 2404 TOTAL SCORE: 21215 Bonus ------- High Alert Combat Kills 79 Follower Combat Kills 1353 Network Hubs Disabled 200 Aligned with FarCom 300 Met R17 at Cetus 500 Friendly Fire -28 Cogmind --------- Core Integrity 0/950 Matter 618/850 Energy 600/600 System Corruption 3% Temperature Hot (210) Movement Walking (125) Location -4/Hub_04(d) Parts ------- > --- POWER (2) -------- Quantum Reactor Quantum Reactor > --- PROPULSION (4) --- Myomer Leg Myomer Leg Myomer Leg Shield Leg > --- UTILITY (7) ------ Machine Analyzer Experimental Targeting Computer Improved Kinecellerator Advanced Transmission Jammer Improved Phase Shifter Centrium Medium Armor Plating Improved Dynamic Insulation System > --- WEAPON (4) ------- KE Penetrator Railgun Advanced KE Penetrator Advanced KE Penetrator > --- INVENTORY (6) ---- Quantum Reactor Improved Trap Scanner Improved Reaction Control System Centrium Medium Armor Plating Railgun CR-A16's Pointy Stick Peak State ------------ > --- POWER ------------ Quantum Reactor Quantum Reactor > --- PROPULSION ------- Myomer Leg Myomer Leg Myomer Leg Shield Leg > --- UTILITY ---------- Improved Trap Scanner Machine Analyzer Experimental Targeting Computer Improved Kinecellerator Advanced Transmission Jammer Improved Phase Shifter Centrium Medium Armor Plating > --- WEAPON ----------- KE Penetrator Railgun Advanced KE Penetrator Advanced KE Penetrator > --- INVENTORY -------- Quantum Reactor Improved Reaction Control System Centrium Medium Armor Plating Improved Dynamic Insulation System Railgun CR-A16's Pointy Stick [Rating: 122] Favorites ----------- Power Antimatter Reactor Engine Deuterium Engine Power Core Neutrino Core Reactor Antimatter Reactor Propulsion Improved Carbon-fiber Leg Leg Improved Carbon-fiber Leg Utility Experimental Targeting Computer Device Improved Reaction Control System Storage High-capacity Matter Pod Processor Experimental Targeting Computer Protection Improved Medium Armor Plating Weapon Precision Assault Rifle Ballistic Gun Precision Assault Rifle Special Weapon Field Lobotomy Kit Piercing Weapon CR-A16's Pointy Stick Build | -11 -10 -10 -10 -9 -8 -8 -8 -6 -6 -6 -6 -6 -6 -5 -5 -4 -4 -4 -4 -4 ------- Run | Yrd Mat Min Exi Min Mat Sto Rec Fac Was Fac Low Low Zio Pro Fac Fac Ext Cet Arc Hub Slots Evolved 13 | 4 . . . 1 3 1 1 1 . 1 . . . . 1 . . . . . Power 1 | . . . . . . . . . . . . . . . 1 . . . . . Propulsion 3 | 1 . . . . 1 . 1 . . . . . . . . . . . . . Utility 6 | . . . . 1 2 1 . 1 . 1 . . . . . . . . . . Weapon 3 | 3 . . . . . . . . . . . . . . . . . . . . Parts Attached 72 | 3 10 1 1 2 9 3 2 6 3 4 . 1 . . 7 10 . 7 . 3 Power 10 | . . . . . 1 . . 2 1 . . . . . 2 1 . 3 . . Engine 3 | . . . . . 1 . . 2 . . . . . . . . . . . . Core 2 | . . . . . . . . . . . . . . . 2 . . . . . Reactor 5 | . . . . . . . . . 1 . . . . . . 1 . 3 . . Propulsion 16 | 1 . . . . 4 . 1 3 1 . . . . . . 6 . . . . Treads . | . . . . . . . . . . . . . . . . . . . . . Leg 16 | 1 . . . . 4 . 1 3 1 . . . . . . 6 . . . . Wheel . | . . . . . . . . . . . . . . . . . . . . . Hover . | . . . . . . . . . . . . . . . . . . . . . Flight . | . . . . . . . . . . . . . . . . . . . . . Utility 21 | . 2 1 . 2 . 2 1 1 1 4 . . . . . 3 . 2 . 2 Device 12 | . . 1 . 1 . 1 . . 1 3 . . . . . 3 . . . 2 Storage 2 | . 1 . . 1 . . . . . . . . . . . . . . . . Processor 2 | . . . . . . 1 1 . . . . . . . . . . . . . Hackware . | . . . . . . . . . . . . . . . . . . . . . Protection 5 | . 1 . . . . . . 1 . 1 . . . . . . . 2 . . Artifact . | . . . . . . . . . . . . . . . . . . . . . Weapon 25 | 2 8 . 1 . 4 1 . . . . . 1 . . 5 . . 2 . 1 Energy Gun . | . . . . . . . . . . . . . . . . . . . . . Energy Cannon . | . . . . . . . . . . . . . . . . . . . . . Ballistic Gun 22 | 2 8 . . . 4 1 . . . . . . . . 4 . . 2 . 1 Ballistic Cannon . | . . . . . . . . . . . . . . . . . . . . . Launcher . | . . . . . . . . . . . . . . . . . . . . . Special Weapon 2 | . . . 1 . . . . . . . . 1 . . . . . . . . Impact Weapon . | . . . . . . . . . . . . . . . . . . . . . Slashing Weapon . | . . . . . . . . . . . . . . . . . . . . . Piercing Weapon 1 | . . . . . . . . . . . . . . . 1 . . . . . Special Melee Weapon . | . . . . . . . . . . . . . . . . . . . . . Unidentified Prototypes 8 | . . 1 . . 2 1 . . . . . 1 . . . 1 . 2 . . Parts Lost . | . . . . . . . . . . . . . . . . . . . . . Power . | . . . . . . . . . . . . . . . . . . . . . Propulsion . | . . . . . . . . . . . . . . . . . . . . . Utility . | . . . . . . . . . . . . . . . . . . . . . Weapon . | . . . . . . . . . . . . . . . . . . . . . Highest Loss Streak . | . . . . . . . . . . . . . . . . . . . . . To Critical Strikes . | . . . . . . . . . . . . . . . . . . . . . Average Backups 2 | . 1 . . . 1 1 . 1 1 . . . . 1 2 3 5 6 6 6 Power . | . . . . . . . . . . . . . . . . . . . 1 1 Propulsion . | . . . . . . 1 . . . . . . . . . 1 2 1 . . Utility . | . . . . . . . . . . . . . . . . . 1 2 3 3 Weapon 1 | . . . . . 1 . . 1 . . . . . 1 1 1 1 2 2 2 Tool/Special . | . . . . . . . . . . . . . . . . . . . . . Unused Backups 16 | . 5 1 . . 3 . . . 1 . . . . . 1 2 1 1 . 1 Power 3 | . 2 . . . 1 . . . . . . . . . . . . . . . Propulsion 3 | . 1 . . . 1 . . . . . . . . . . . . 1 . . Utility 2 | . . . . . . . . . . . . . . . . 1 1 . . . Weapon 8 | . 2 1 . . 1 . . . 1 . . . . . 1 1 . . . 1 Tool/Special . | . . . . . . . . . . . . . . . . . . . . . Average Slot Usage (%) 98 | . 96 100 100 98 93 84 98 98 100 99 100 99 100 100 100 99 100 100 100 99 Engine 3 | . 12 12 12 11 9 7 7 6 3 . . . . . . . . . . . Core 1 | . . . . . . . . . . . . . . . 4 4 . . . . Reactor 4 | . . . . . . . . . 2 6 6 6 6 6 5 5 11 11 11 11 Leg 24 | . 25 25 25 22 27 23 27 26 26 25 25 25 25 25 23 23 23 23 23 22 Device 16 | . . 4 12 11 9 8 14 13 13 12 18 18 18 18 17 22 23 23 23 23 Storage 4 | . 5 7 . 9 9 7 7 6 6 6 6 6 6 6 5 . . . . . Processor 9 | . . . . . . 6 12 13 13 12 12 12 12 12 11 11 11 11 11 11 Protection 3 | . 3 . . . . . . 4 6 6 6 6 6 6 5 4 5 5 5 5 Ballistic Gun 26 | . 49 50 43 33 28 24 28 26 26 25 25 24 25 25 21 19 21 23 23 22 Special Weapon 1 | . . . 6 11 9 4 . . . . . . . . . . . . . . Peak Build Rating 122 | 6 12 20 28 29 43 49 53 60 65 76 76 84 76 77 87 103 105 119 119 122 Average Rating 71 | 5 11 14 23 24 41 45 52 57 61 68 76 75 76 76 85 98 104 115 119 120 On Entrance 60 | 3 6 12 20 28 21 43 46 53 60 65 76 76 76 76 77 85 102 105 119 119 Avg Prop Armor Cover (%) . | . . . . . . . . . . . . . . . . . . . . . Naked Turns . | . . . . . . . . . . . . . . . . . . . . . Heaviest Build 82 | 9 21 21 23 27 34 34 31 43 47 49 49 49 49 49 67 69 71 81 81 82 Greatest Support 100 | 20 20 20 20 20 54 54 72 76 76 76 76 76 76 76 76 100 100 100 100 100 Greatest Overweight (x) 3 | . 1 1 1 1 1 . . . . . . . . . . . . . . 3 Average Overweight (x) . | . . . . 1 . . . . . . . . . . . . . . . . Largest Inventory Capacity 6 | 1 1 1 1 2 3 3 3 4 4 4 4 4 4 4 4 6 6 6 6 6 Average Capacity 4 | . 1 1 1 1 2 3 3 3 4 4 4 4 4 4 4 5 6 6 6 6 Most Carried 6 | 1 1 1 1 2 3 3 3 4 4 4 4 4 4 4 4 6 6 6 6 6 Average Carried 3 | . 1 . 1 1 2 2 2 3 3 4 4 4 3 3 3 5 5 5 6 6 Final Capacity 6 | 1 1 1 1 2 3 3 3 4 4 4 4 4 4 4 4 6 6 6 6 6 Final Carried 6 | 1 1 1 1 2 3 2 3 4 4 4 4 4 4 4 4 6 6 6 6 6 Class Distribution -------------------- 53% | Hacker-Gunner 21% | Hacker-Skirmisher 16% | Hacker-Assassin 4% | Commander-Skirmisher Dominant Class ---------------- Hacker-Gunner | -10/Materials Hacker-Gunner | -10/Mines Hacker-Gunner | -10/Exiles Hacker-Skirmisher | -9/Mines Hacker-Skirmisher | -8/Materials Hacker-Gunner | -8/Storage Commander-Skirmisher | -8/Recycling Hacker-Gunner | -6/Factory Hacker-Gunner | -6/Waste Hacker-Gunner | -6/Factory Hacker-Gunner | -6/Lower Caves Hacker-Gunner | -6/Lower Caves Hacker-Gunner | -6/Zion Hacker-Gunner | -5/Proximity Caves Hacker-Skirmisher | -5/Factory Hacker-Assassin | -4/Factory Hacker-Gunner | -4/Extension Hacker-Gunner | -4/Cetus Hacker-Gunner | -4/Archives Hacker-Gunner | -4/Hub_04(d) Resources | -11 -10 -10 -10 -9 -8 -8 -8 -6 -6 -6 -6 -6 -6 -5 -5 -4 -4 -4 -4 -4 ----------- Run | Yrd Mat Min Exi Min Mat Sto Rec Fac Was Fac Low Low Zio Pro Fac Fac Ext Cet Arc Hub Matter Collected 6988 | 229 101 312 . 299 390 224 345 348 298 37 1005 306 231 656 188 814 630 187 155 233 Remotely . | . . . . . . . . . . . . . . . . . . . . . Salvage Created 8479 | . . 61 . 127 431 353 566 295 . 59 628 628 402 1161 144 1549 953 306 150 666 Parts 478 | . . 1 . 7 27 16 34 25 2 10 34 27 9 52 17 91 60 18 14 34 Haulers Intercepted 2 | . . . . . . . . . . . . . . . . 1 . . . 1 Recyclers Shooed . | . . . . . . . . . . . . . . . . . . . . . Parts Field Recycled . | . . . . . . . . . . . . . . . . . . . . . Retrieved Matter . | . . . . . . . . . . . . . . . . . . . . . Parts Self-Destructed 127 | . . . . . . . . . . . 40 27 . 60 . . . . . . Prevented 1 | . . . . . . . . . . . . . . 1 . . . . . . Parts Restored . | . . . . . . . . . . . . . . . . . . . . . Kills | -11 -10 -10 -10 -9 -8 -8 -8 -6 -6 -6 -6 -6 -6 -5 -5 -4 -4 -4 -4 -4 ------- Run | Yrd Mat Min Exi Min Mat Sto Rec Fac Was Fac Low Low Zio Pro Fac Fac Ext Cet Arc Hub Combat Hostiles Destroyed 174 | . . 1 . 6 13 6 12 8 1 3 18 14 5 24 5 26 15 6 2 9 Guns 174 | . . 1 . 6 13 6 12 8 1 3 18 14 5 24 5 26 15 6 2 9 Classes Destroyed 19 | . . 1 . 2 4 . 4 . 1 1 1 . . 1 . 2 1 . . 1 Worker 3 | . . . . . . . . . . . . . . . . . . . . 3 Builder 3 | . . . . . . . . . . . . . . . . 1 1 . . 1 Hauler 2 | . . . . . . . . . . . . . . . . 1 . . . 1 Recycler 2 | . . . . . 1 . . . . . . . . . . 1 . . . . Operator 6 | . . . . . . . . . . 1 . . . . . 1 1 . 1 2 Watcher 15 | . . . . . 2 1 . 4 . 1 . . . . . 3 3 1 . . Swarmer 52 | . . . . 3 7 2 . 1 . 1 4 5 . 9 4 9 7 . . . Grunt 50 | . . 1 . 1 3 . 1 6 . . 10 8 . 9 . 6 2 . . 3 Brawler 5 | . . . . . . . 1 . . . 1 . . 1 . . . . . 2 Duelist 5 | . . . . . . . 2 . . 1 . . . 2 . . . . . . Protector 1 | . . . . . . . . . . . . . . 1 . . . . . . Sentry 23 | . . . . . 2 3 4 1 . 1 1 1 . 2 . 1 4 . 2 1 Hunter 7 | . . . . . 1 1 1 . . . . . . . . 2 . . . 2 Programmer 11 | . . . . . . . . . . . 2 . . . 1 8 . . . . Behemoth 2 | . . . . . . . . . . . . . . . . . 2 . . . Compactor 1 | . . . . . . . . . 1 . . . . . . . . . . . Cetus Guard 6 | . . . . . . . . . . . . . . . . . . 6 . . Lightning 1 | . . . . . . . . . . . . . . . . . . . . 1 Scientist 2 | . . . . . . . 2 . . . . . . . . . . . . . Scrapper 3 | . . . . . . . 3 . . . . . . . . . . . . . Assembled 2 | . . . . 2 . . . . . . . . . . . . . . . . Wasp 1 | . . . . . . . . . . . . . 1 . . . . . . . Thug 2 | . . . . . . . . . . . . . 2 . . . . . . . Butcher 2 | . . . . . . . . . . . . . 2 . . . . . . . Best Kill Streak 9 | . . 1 . 3 3 5 5 5 1 1 5 5 5 7 4 9 5 4 3 7 Combat Bots Only 7 | . . 1 . 3 3 4 5 5 1 1 5 5 5 7 4 6 4 4 2 4 Max Kills in Single Turn 4 | . . 1 . 2 2 1 2 2 1 1 2 3 1 3 3 4 2 2 2 4 Gunslinging 2 | . . . . 1 . . 1 1 . . 1 2 . 1 2 2 1 . . 1 Exploded . | . . . . . . . . . . . . . . . . . . . . . Melee . | . . . . . . . . . . . . . . . . . . . . . Uniques/NPCs Destroyed . | . . . . . . . . . . . . . . . . . . . . . Combat | -11 -10 -10 -10 -9 -8 -8 -8 -6 -6 -6 -6 -6 -6 -5 -5 -4 -4 -4 -4 -4 -------- Run | Yrd Mat Min Exi Min Mat Sto Rec Fac Was Fac Low Low Zio Pro Fac Fac Ext Cet Arc Hub Hostile Shots Fired 829 | . . 4 . 13 32 29 23 65 . 10 131 33 132 89 10 90 48 15 5 100 Missed 344 | . . 2 . 2 9 8 9 18 . 4 50 16 72 33 6 41 24 7 3 40 Hits 485 | . . 2 . 11 23 21 14 47 . 6 81 17 60 56 4 49 24 8 2 60 Melee 7 | . . . . . . . 2 . . . 1 . 3 1 . . . . . . Projectile 478 | . . 2 . 11 23 21 12 47 . 6 80 17 57 55 4 49 24 8 2 60 AOE 2 | . . . . . . 1 . . . . . . . . . 1 . . . . Critical Strikes 19 | . . . . . 1 . . 4 . . 4 1 1 . . 1 2 . . 5 Part Disruptions 1 | . . . . . . . . . . . . . . . . 1 . . . . Damage Taken 6326 | . . 16 . 77 192 226 171 397 41 65 930 205 753 667 41 629 352 150 56 1358 Core 4659 | . . 12 . 57 147 184 132 278 32 51 638 136 549 476 32 460 259 108 46 1062 Absorbed by Shields 112 | . . . . . . . 14 98 . . . . . . . . . . . . Redirected to Core 4169 | . . 12 . 53 138 138 125 257 32 51 562 114 475 438 32 446 259 94 34 909 Ignored by Resistances 3399 | . . 6 . 28 91 101 84 291 15 33 506 117 413 416 22 342 250 105 41 538 Regen/Repaired (Parts) 192 | . . . . . . . . . 39 . . . . . . 153 . . . . Core Remaining (%) 95 | 100 . . . 92 . . 97 . . . . . . 92 97 . . . . . Volleys Fired 327 | . . 4 . 7 20 14 16 24 12 7 40 19 12 40 3 36 33 13 4 23 Largest 4 | . . 4 . 4 3 4 4 4 4 4 4 4 4 4 4 4 4 4 4 4 Hottest 138 | . . 92 . 69 84 84 112 112 112 112 112 112 112 112 132 132 132 134 136 138 Shots Fired 1242 | . . 16 . 24 60 43 64 96 48 28 160 76 48 160 12 126 125 52 16 88 Gun 1237 | . . 16 . 21 60 41 64 96 48 28 160 76 48 160 12 126 125 52 16 88 Cannon . | . . . . . . . . . . . . . . . . . . . . . Launcher . | . . . . . . . . . . . . . . . . . . . . . Special 5 | . . . . 3 . 2 . . . . . . . . . . . . . . Kinetic 1237 | . . 16 . 21 60 41 64 96 48 28 160 76 48 160 12 126 125 52 16 88 Thermal . | . . . . . . . . . . . . . . . . . . . . . Explosive . | . . . . . . . . . . . . . . . . . . . . . Electromagnetic . | . . . . . . . . . . . . . . . . . . . . . Robot Hit Streak 81 | . . 8 . 12 49 61 16 29 29 29 45 53 42 38 11 46 81 12 16 39 Robot Miss Streak 1 | . . 1 . 1 . 1 1 1 1 1 1 1 1 1 . 1 1 1 1 1 Penetration Max 1 | . . . . . . . . . . . . . . . 1 1 1 1 1 1 Secondary Targets 55 | . . 1 . 1 1 . 2 3 1 1 9 7 3 8 2 7 3 1 1 4 Max Gunslinging Chain 3 | . . 1 . 1 1 . 1 1 1 1 1 3 1 2 2 2 1 1 1 2 Shots Hit Robots 1002 | . . 14 . 13 43 35 41 78 46 20 150 61 44 129 8 95 92 43 14 76 Core Hits 399 | . . 3 . 9 24 9 17 27 7 13 45 26 11 54 5 52 38 21 6 32 Critical Kills 18 | . . . . . . . . 1 . . 1 . . . 1 7 1 3 2 2 Critical Parts Destroyed 16 | . . . . . . . . 1 . . 2 . . 1 . 4 . . 1 7 Critical Strikes 38 | . . . . . . . . 2 . . 3 . . 2 1 12 1 3 5 9 Destroy 38 | . . . . . . . . 2 . . 3 . . 2 1 12 1 3 5 9 Melee Attacks 54 | . . . . . . . . . . . . . . . 9 37 5 . . 3 Impact . | . . . . . . . . . . . . . . . . . . . . . Slashing . | . . . . . . . . . . . . . . . . . . . . . Piercing 54 | . . . . . . . . . . . . . . . 9 37 5 . . 3 Sneak Attacks . | . . . . . . . . . . . . . . . . . . . . . Combat Hostiles . | . . . . . . . . . . . . . . . . . . . . . Follow-up Attacks . | . . . . . . . . . . . . . . . . . . . . . Damage Inflicted 27044 | . . 204 . 181 909 660 839 1661 922 420 3183 1377 1187 2859 283 3673 3317 1525 563 3281 Guns 26457 | . . 204 . 181 909 660 839 1661 922 420 3183 1377 1187 2859 283 3645 3317 1525 563 2722 Cannons . | . . . . . . . . . . . . . . . . . . . . . Explosions 587 | . . . . . . . . . . . . . . . . 28 . . . 559 Melee . | . . . . . . . . . . . . . . . . . . . . . Ramming . | . . . . . . . . . . . . . . . . . . . . . Kinetic 26457 | . . 204 . 181 909 660 839 1661 922 420 3183 1377 1187 2859 283 3645 3317 1525 563 2722 Thermal 28 | . . . . . . . . . . . . . . . . 28 . . . . Explosive . | . . . . . . . . . . . . . . . . . . . . . Electromagnetic 559 | . . . . . . . . . . . . . . . . . . . . 559 Impact . | . . . . . . . . . . . . . . . . . . . . . Slashing . | . . . . . . . . . . . . . . . . . . . . . Piercing . | . . . . . . . . . . . . . . . . . . . . . Highest Corruption 3 | . . . . . 1 1 1 . . . 1 1 1 . . . . . . 3 Average Corruption 1 | . . . . . 1 1 1 . . . 1 1 1 . . . . . . 1 Corruption Purged . | . . . . . . . . . . . . . . . . . . . . . Corruption Blocked . | . . . . . . . . . . . . . . . . . . . . . Effects 17 | . . . . . 2 1 6 . . . 5 2 1 . . . . . . . Message Errors 5 | . . . . . 1 . 2 . . . 1 1 . . . . . . . . Matter Fused 6 | . . . . . . . 2 . . . 2 1 1 . . . . . . . Heat Flow Errors 1 | . . . . . . . 1 . . . . . . . . . . . . . Energy Discharges 3 | . . . . . 1 1 1 . . . . . . . . . . . . . Data Loss (minor) 1 | . . . . . . . . . . . 1 . . . . . . . . . Data Loss (major) 1 | . . . . . . . . . . . 1 . . . . . . . . . Overload Shots . | . . . . . . . . . . . . . . . . . . . . . Overflow Damage 25 | . . . . . . . . . . . . . . . . . . . . 25 Projectiles . | . . . . . . . . . . . . . . . . . . . . . Explosions 25 | . . . . . . . . . . . . . . . . . . . . 25 Melee . | . . . . . . . . . . . . . . . . . . . . . Knockbacks . | . . . . . . . . . . . . . . . . . . . . . Impact . | . . . . . . . . . . . . . . . . . . . . . Kinetic . | . . . . . . . . . . . . . . . . . . . . . Secondary . | . . . . . . . . . . . . . . . . . . . . . Self-Inflicted Damage 84 | . . . . . . . . . . . . . . . . . . . . 84 Shots 1 | . . . . . . . . . . . . . . . . . . . . 1 Rammed . | . . . . . . . . . . . . . . . . . . . . . Targets Rammed . | . . . . . . . . . . . . . . . . . . . . . Kicked . | . . . . . . . . . . . . . . . . . . . . . Crushed . | . . . . . . . . . . . . . . . . . . . . . Highest Temperature 210 | . . 36 . . . . 118 29 . 2 20 20 8 15 24 112 62 42 48 210 Average Temperature 26 | . . 19 . . . . 65 10 . 2 4 5 3 3 16 27 21 17 21 64 Received Heat Transfer 1923 | . . 12 . 27 90 72 65 292 . 18 396 129 99 252 . 102 149 45 9 166 Siege Activations . | . . . . . . . . . . . . . . . . . . . . . Martial Activations . | . . . . . . . . . . . . . . . . . . . . . Shielding Activations . | . . . . . . . . . . . . . . . . . . . . . Robots Disrupted . | . . . . . . . . . . . . . . . . . . . . . Combat Hostiles . | . . . . . . . . . . . . . . . . . . . . . Robots Corrupted . | . . . . . . . . . . . . . . . . . . . . . Combat Hostiles . | . . . . . . . . . . . . . . . . . . . . . Parts Fried 1 | . . . . . . . . . . . . . . . . . . . . 1 Impact Corruptions . | . . . . . . . . . . . . . . . . . . . . . Robots Melted . | . . . . . . . . . . . . . . . . . . . . . Combat Hostiles . | . . . . . . . . . . . . . . . . . . . . . Parts Melted 4 | . . . . . . 1 2 . . . . . . . . . . 1 . . Heat Transferred 50 | . . . . . . . . . . . . . . . . 50 . . . . Parts Sabotaged . | . . . . . . . . . . . . . . . . . . . . . Parts Stolen . | . . . . . . . . . . . . . . . . . . . . . Parts Stripped . | . . . . . . . . . . . . . . . . . . . . . Power Chain Reactions . | . . . . . . . . . . . . . . . . . . . . . Alert | -11 -10 -10 -10 -9 -8 -8 -8 -6 -6 -6 -6 -6 -6 -5 -5 -4 -4 -4 -4 -4 ------- Run | Yrd Mat Min Exi Min Mat Sto Rec Fac Was Fac Low Low Zio Pro Fac Fac Ext Cet Arc Hub Maximum Alert Level 2 | . . . . . . . . . . 2 . . . . . 2 1 . . 2 Low Security (%) 89 | 100 100 100 . 100 100 100 100 100 100 55 . . . . 100 80 74 100 100 92 Level 1 7 | . . . . . . . . . . 30 . . . . . 14 25 . . . Level 2 2 | . . . . . . . . . . 13 . . . . . 4 . . . 7 Level 3 . | . . . . . . . . . . . . . . . . . . . . . Level 4 . | . . . . . . . . . . . . . . . . . . . . . Level 5 . | . . . . . . . . . . . . . . . . . . . . . High Security . | . . . . . . . . . . . . . . . . . . . . . Max Security . | . . . . . . . . . . . . . . . . . . . . . Peak Influence 670 | . 6 81 . 70 184 142 110 111 20 620 . . . . 102 463 263 149 157 670 Initial 104 | . . . . . . 58 40 . 1 . . . . . 85 . 5 104 29 31 Average 73 | . . 31 . 5 57 101 21 24 2 192 . . . . 29 100 151 90 117 99 Influence Increases 7193 | . 18 91 . 90 403 214 205 282 40 1000 440 290 . 525 184 1126 799 265 158 1063 Destroy 0b10 Robot/C 3980 | . . 80 . 80 260 140 180 160 . 460 360 280 . 480 100 520 420 160 80 220 Destroy 0b10 Robot/NC 200 | . . . . . 15 5 . 20 . 20 . . . 5 . 35 35 10 5 50 Destroy Leader 538 | . . 10 . 10 54 52 . 38 . 72 20 10 . 40 20 108 46 . . 58 Allied During Kill 538 | . . 1 . . . 5 6 . . 217 . . . . . . 161 71 30 47 Successful Hack 255 | . 18 . . . 17 10 18 30 . 23 . . . . 34 49 19 . . 37 Disable Machine 459 | . . . . . 9 . . . . 36 . . . . . 81 9 . 27 297 Anti-Garrison Action 150 | . . . . . . . . . . 150 . . . . . . . . . . Destroy Structure 788 | . . . . . 3 2 1 4 40 22 . . . . 30 258 64 24 16 324 Partial Spotted 15 | . . . . . . . . . . . . . . . . . . . . 15 Lose Combat Pursuer 270 | . . . . . 45 . . 30 . . 60 . . . . 75 45 . . 15 Influence Decreases 6533 | . 18 60 31 90 239 256 327 275 47 470 638 303 319 370 339 1112 598 391 140 510 Entered New Map 1201 | . . . 31 . . 106 82 . 6 . 238 93 319 . 70 . 9 111 60 76 Time Decay 4165 | . 18 60 . 90 239 90 225 255 41 280 400 210 . 330 269 812 399 180 60 207 Lost Ally 590 | . . . . . . 60 20 20 . 190 . . . 40 . . 40 100 20 100 Purge Threat 577 | . . . . . . . . . . . . . . . . 300 150 . . 127 Squads Dispatched 24 | . . 1 . . . 3 . 2 . 6 . . . 1 2 5 1 . . 3 Investigation . | . . . . . . . . . . . . . . . . . . . . . Extermination 9 | . . . . . . . . . . 1 . . . . 2 5 . . . 1 Reinforcement 9 | . . . . . . 1 . 2 . 3 . . . . . . 1 . . 2 Assault 5 | . . 1 . . . 2 . . . 1 . . . 1 . . . . . . Garrison 1 | . . . . . . . . . . 1 . . . . . . . . . . Intercept . | . . . . . . . . . . . . . . . . . . . . . Searches Triggered . | . . . . . . . . . . . . . . . . . . . . . Construction Impeded . | . . . . . . . . . . . . . . . . . . . . . Haulers Reinforced 2 | . . . . . . . . 1 . 1 . . . . . . . . . . Active Scanning Responses . | . . . . . . . . . . . . . . . . . . . . . Cargo Convoy Interrupts . | . . . . . . . . . . . . . . . . . . . . . Stealth | -11 -10 -10 -10 -9 -8 -8 -8 -6 -6 -6 -6 -6 -6 -5 -5 -4 -4 -4 -4 -4 --------- Run | Yrd Mat Min Exi Min Mat Sto Rec Fac Was Fac Low Low Zio Pro Fac Fac Ext Cet Arc Hub Distress Signals 15 | . . . . 2 4 1 . 1 . 1 . . . . . 2 1 2 . 1 Communications Jammed 2 | . . . . . . . . . . . . . . . . . . . . 2 Distress Signals . | . . . . . . . . . . . . . . . . . . . . . Times Spotted 265 | . . 4 . 7 18 12 10 17 6 16 23 11 9 29 7 36 26 11 5 18 Peak Tracking Total 10 | . . 4 . 3 5 5 5 5 3 6 7 5 7 7 6 7 6 5 1 10 Tactical Retreats 12 | . . . . . 2 . . 1 . . 4 . . . . 3 1 . . 1 Traps | -11 -10 -10 -10 -9 -8 -8 -8 -6 -6 -6 -6 -6 -6 -5 -5 -4 -4 -4 -4 -4 ------- Run | Yrd Mat Min Exi Min Mat Sto Rec Fac Was Fac Low Low Zio Pro Fac Fac Ext Cet Arc Hub Traps Triggered 7 | . . . . . 1 1 . 1 . 2 . . . . . . . . . 2 Indirectly 1 | . . . . . . . . . . . . . . . . . . . . 1 Trap Hack Attempts . | . . . . . . . . . . . . . . . . . . . . . Triggered . | . . . . . . . . . . . . . . . . . . . . . Disarmed . | . . . . . . . . . . . . . . . . . . . . . Reprogrammed 6 | . . . . . . . . . . . . . . . . . 5 . . 1 Reused . | . . . . . . . . . . . . . . . . . . . . . Traps Extracted . | . . . . . . . . . . . . . . . . . . . . . Installed . | . . . . . . . . . . . . . . . . . . . . . Triggered . | . . . . . . . . . . . . . . . . . . . . . Machines | -11 -10 -10 -10 -9 -8 -8 -8 -6 -6 -6 -6 -6 -6 -5 -5 -4 -4 -4 -4 -4 ---------- Run | Yrd Mat Min Exi Min Mat Sto Rec Fac Was Fac Low Low Zio Pro Fac Fac Ext Cet Arc Hub Machines Disabled 56 | . . . . . 1 . . . . 5 . 1 . . . 10 2 1 3 33 Max in Single Turn 33 | . . . . . 1 . . . . . . 1 . . . 4 1 1 1 33 Garrison Access 3 | . . . . . 1 . . . . 1 . . . . . 1 . . . . Network Hub 1 | . . . . . . . . . . . . . . . . . . . . 1 Machines Repaired . | . . . . . . . . . . . . . . . . . . . . . Machines Dismantled . | . . . . . . . . . . . . . . . . . . . . . Machines Sabotaged . | . . . . . . . . . . . . . . . . . . . . . Overloaded Fab Kills . | . . . . . . . . . . . . . . . . . . . . . Hacking | -11 -10 -10 -10 -9 -8 -8 -8 -6 -6 -6 -6 -6 -6 -5 -5 -4 -4 -4 -4 -4 --------- Run | Yrd Mat Min Exi Min Mat Sto Rec Fac Was Fac Low Low Zio Pro Fac Fac Ext Cet Arc Hub Machines Accessed 73 | . 3 . 1 . 2 3 11 5 . 6 2 . . . 4 11 16 1 1 7 Terminals 53 | . 3 . . . 1 3 6 4 . 4 . . . . 3 6 15 1 . 7 Fabricators 2 | . . . . . . . . . . 1 . . . . . 1 . . . . Repair Stations 2 | . . . . . . . . . . . . . . . 1 1 . . . . Recycling Units 7 | . . . . . . . 4 1 . 1 . . . . . . 1 . . . Scanalyzers 1 | . . . . . . . . . . . . . . . . 1 . . . . Garrison Access 3 | . . . . . 1 . . . . . . . . . . 2 . . . . Total Hacks 274 | . 12 . 1 . 11 12 37 16 . 18 2 . . . 27 36 57 1 1 43 Successful 188 | . 8 . 1 . 9 6 28 11 . 13 2 . . . 18 19 43 1 1 28 Failed 85 | . 4 . . . 2 6 9 5 . 5 . . . . 9 17 13 . . 15 Catastrophic 8 | . 1 . . . . . . . . . . . . . 1 3 . . . 3 Database Lockouts 1 | . . . . . . . . . . . . . . . . . 1 . . . Manual 167 | . 6 . 1 . 8 6 18 12 . 11 . 1 . . 20 20 35 . . 29 Terminals 230 | . 12 . . . 10 12 22 14 . 13 . . . . 26 25 52 1 . 43 Fabricators 4 | . . . . . . . . . . 2 . . . . . 2 . . . . Repair Stations 3 | . . . . . . . . . . . . . . . 1 2 . . . . Recycling Units 23 | . . . . . . . 13 2 . 3 . . . . . . 5 . . . Scanalyzers 3 | . . . . . . . . . . . . . . . . 3 . . . . Garrison Access 5 | . . . . . 1 . . . . . . . . . . 4 . . . . Terminal Hacks 108 | . 6 . 1 . 6 5 13 3 . 4 2 . . . 12 8 29 1 1 17 Record 4 | . 2 . . . . . . . . . 1 . . . . . . . 1 . Part Schematic 5 | . . . . . . . 2 . . . . . . . 1 . . . . 2 Robot Analysis 11 | . . . . . 3 . . 1 . 1 . . . . 1 . 3 . . 2 Prototype ID Bank 8 | . 1 . . . . . 2 . . . . . . . 2 1 1 . . 1 Open Door 11 | . . . . . . 1 . . . . 1 . . . . . 8 1 . . Level Access Points 3 | . 1 . . . . . 1 . . . . . . . 1 . . . . . Branch Access Points 8 | . 1 . . . 1 1 . 1 . 1 . . . . . 1 1 . . 1 Emergency Access Points 1 | . . . . . . . . . . . . . . . . . . . . 1 Machine Index 1 | . . . . . . . . . . . . . . . . . . . . 1 Terminal Index 4 | . . . . . 1 . . . . . . . . . 1 . 1 . . 1 Recycling Unit Index 1 | . . . . . . . 1 . . . . . . . . . . . . . Alert Level 15 | . . . . . 1 2 2 . . 1 . . . . 2 2 3 . . 2 Unreport Threat 4 | . . . . . . . . . . . . . . . . 2 1 . . 1 Locate Traps 10 | . . . . . . . . 1 . . . . . . 2 2 2 . . 3 Reprogram Traps 3 | . . . . . . . . . . . . . . . . . 2 . . 1 Dispatch Records 1 | . . . . . . . 1 . . . . . . . . . . . . . Maintenance Status 1 | . . . . . . . 1 . . . . . . . . . . . . . Security Status 2 | . 1 . . . . . . . . . . . . . . . 1 . . . Surveillance Status 2 | . . . . . . . 1 . . . . . . . . . 1 . . . Patrol Status 1 | . . . . . . 1 . . . . . . . . . . . . . . Reinforcement Status 1 | . . . . . . . . . . . . . . . . . 1 . . . Recall Extermination 2 | . . . . . . . . . . 1 . . . . 1 . . . . . Recall Reinforcements 1 | . . . . . . . . . . . . . . . . . 1 . . . Hauler Manifests 1 | . . . . . . . . . . . . . . . 1 . . . . . Registered Components 2 | . . . . . . . . . . . . . . . . . 1 . . 1 Zone Layout 2 | . . . . . . . . . . . . . . . . . 2 . . . Proto ID Catalog 1 | . . . 1 . . . . . . . . . . . . . . . . . Release Object 2 | . . . . . . . 2 . . . . . . . . . . . . . Fabricator Hacks 2 | . . . . . . . . . . 1 . . . . . 1 . . . . Network Status 2 | . . . . . . . . . . 1 . . . . . 1 . . . . Repair Station Hacks 2 | . . . . . . . . . . . . . . . . 2 . . . . Scan Component 1 | . . . . . . . . . . . . . . . . 1 . . . . Repair 1 | . . . . . . . . . . . . . . . . 1 . . . . Recycling Unit Hacks 12 | . . . . . . . 7 1 . 2 . . . . . . 2 . . . Recycle Component 1 | . . . . . . . 1 . . . . . . . . . . . . . Report Inventory 5 | . . . . . . . 2 1 . 1 . . . . . . 1 . . . Retrieve Components 6 | . . . . . . . 4 . . 1 . . . . . . 1 . . . Scanalyzer 1 | . . . . . . . . . . . . . . . . 1 . . . . Insert Component 1 | . . . . . . . . . . . . . . . . 1 . . . . Garrison Access Hacks 2 | . . . . . 1 . . . . . . . . . . 1 . . . . Seal Access 2 | . . . . . 1 . . . . . . . . . . 1 . . . . Unauthorized Hacks 61 | . 2 . . . 2 1 8 7 . 6 . . . . 6 6 12 . . 11 Terminals 48 | . 2 . . . 2 1 3 6 . 4 . . . . 5 5 9 . . 11 Track 7 | . . . . . . . . 1 . . . . . . 1 1 2 . . 2 Assimilate 2 | . . . . . . . . 1 . 1 . . . . . . . . . . Botnet 27 | . 2 . . . 1 1 3 4 . 3 . . . . 3 4 3 . . 3 Operators 4 | . . . . . 1 . . . . . . . . . 1 . 1 . . 1 Skim 8 | . . . . . . . . . . . . . . . . . 3 . . 5 Fabricators 2 | . . . . . . . . . . 1 . . . . . 1 . . . . Report 2 | . . . . . . . . . . 1 . . . . . 1 . . . . Repair Stations 1 | . . . . . . . . . . . . . . . 1 . . . . . Mechanics 1 | . . . . . . . . . . . . . . . 1 . . . . . Recycling Units 10 | . . . . . . . 5 1 . 1 . . . . . . 3 . . . Monitor 1 | . . . . . . . . . . . . . . . . . 1 . . . Reject 6 | . . . . . . . 4 . . 1 . . . . . . 1 . . . Recyclers 3 | . . . . . . . 1 1 . . . . . . . . 1 . . . Scanalyzers . | . . . . . . . . . . . . . . . . . . . . . Garrison Access . | . . . . . . . . . . . . . . . . . . . . . Data Cores Recovered 3 | . . . . . . . . . . 1 . . . . . . 1 . . 1 Used 1 | . . . . . . . . . . . . . . . . . 1 . . . Hacking Detections 50 | . 2 . . . 1 3 8 4 . 5 . . . . 2 9 8 1 . 7 Full Trace Events . | . . . . . . . . . . . . . . . . . . . . . Feedback Events . | . . . . . . . . . . . . . . . . . . . . . Feedback Blocked . | . . . . . . . . . . . . . . . . . . . . . Robot Schematics Acquired . | . . . . . . . . . . . . . . . . . . . . . Robots Built . | . . . . . . . . . . . . . . . . . . . . . Authchips . | . . . . . . . . . . . . . . . . . . . . . Time . | . . . . . . . . . . . . . . . . . . . . . Total Robot Build Rating . | . . . . . . . . . . . . . . . . . . . . . Part Schematics Acquired 5 | . . . . . . . 2 . . . . . . . 1 . . . . 2 Parts Built . | . . . . . . . . . . . . . . . . . . . . . Authchips . | . . . . . . . . . . . . . . . . . . . . . Time . | . . . . . . . . . . . . . . . . . . . . . Total Part Build Rating . | . . . . . . . . . . . . . . . . . . . . . Part Studies Acquired . | . . . . . . . . . . . . . . . . . . . . . Parts Repaired 1 | . . . . . . . . . . . . . . . . 1 . . . . Time 44 | . . . . . . . . . . . . . . . . 44 . . . . Parts Recycled 1 | . . . . . . . 1 . . . . . . . . . . . . . Recycled Matter . | . . . . . . . . . . . . . . . . . . . . . Retrieved Matter . | . . . . . . . . . . . . . . . . . . . . . Retrieved Components 31 | . . . . . . . 19 . . 2 . . . . . . 10 . . . Parts Scanalyzed 1 | . . . . . . . . . . . . . . . . 1 . . . . Part Schematics Acquired . | . . . . . . . . . . . . . . . . . . . . . Parts Damaged 1 | . . . . . . . . . . . . . . . . 1 . . . . Bothacking | -11 -10 -10 -10 -9 -8 -8 -8 -6 -6 -6 -6 -6 -6 -5 -5 -4 -4 -4 -4 -4 ------------ Run | Yrd Mat Min Exi Min Mat Sto Rec Fac Was Fac Low Low Zio Pro Fac Fac Ext Cet Arc Hub Used RIF Installer . | . . . . . . . . . . . . . . . . . . . . . Robots Hacked . | . . . . . . . . . . . . . . . . . . . . . Non-combat . | . . . . . . . . . . . . . . . . . . . . . Combat . | . . . . . . . . . . . . . . . . . . . . . Robot Hacks Applied . | . . . . . . . . . . . . . . . . . . . . . Relay Couplers Released 1 | . . . . . . . . . . 1 . . . . . . . . . . Machine Destruction 1 | . . . . . . . . . . 1 . . . . . . . . . . Fabnet Peak Effective % . | . . . . . . . . . . . . . . . . . . . . . Robots Rewired 16 | . . . . . . . 7 . . . . . . 2 . . 7 . . . Allies Hacked 3 | . . . . . . . . . . . . . . . . . . . . 3 Hacks Repelled . | . . . . . . . . . . . . . . . . . . . . . Allies | -11 -10 -10 -10 -9 -8 -8 -8 -6 -6 -6 -6 -6 -6 -5 -5 -4 -4 -4 -4 -4 -------- Run | Yrd Mat Min Exi Min Mat Sto Rec Fac Was Fac Low Low Zio Pro Fac Fac Ext Cet Arc Hub Total Allies 55 | . . 1 . 1 . 3 7 1 20 . . . 5 2 . . 15 . . . Largest Group 19 | . . 1 1 1 . 2 6 3 19 18 . . 5 2 . . 14 13 7 6 Highest-Rated Group 702 | . . 31 31 31 . 62 93 46 702 677 . . 129 58 . . 568 517 273 233 Highest-Rated Ally 51 | . . 31 31 31 . 31 27 27 50 50 . . 31 29 . . 51 51 51 51 Total Orders . | . . . . . . . . . . . . . . . . . . . . . Ally Attacks 322 | . . 5 . 6 . 10 22 . 59 116 . . . 12 . . 23 32 13 24 Total Damage 9004 | . . 82 . 66 . 159 330 . 1799 4230 . . . 196 . . 776 700 116 550 Kills 59 | . . 3 . . . 1 . . 6 29 . . . 1 . . 8 4 2 5 Allies Corrupted 2 | . . . . . . . . . . . . . . . . . . . . 2 Allies Melted . | . . . . . . . . . . . . . . . . . . . . . Field Lobotomies 2 | . . . . 1 . 1 . . . . . . . . . . . . . . Intel | -11 -10 -10 -10 -9 -8 -8 -8 -6 -6 -6 -6 -6 -6 -5 -5 -4 -4 -4 -4 -4 ------- Run | Yrd Mat Min Exi Min Mat Sto Rec Fac Was Fac Low Low Zio Pro Fac Fac Ext Cet Arc Hub Active Infowar (turns) 12237 | . . 73 369 944 820 180 1018 645 225 666 807 433 229 697 723 2410 909 368 136 585 Sensors 875 | . . 73 369 433 . . . . . . . . . . . . . . . . Terrain 3659 | . . . . . . . . . . 311 807 433 229 697 723 459 . . . . Structural 3752 | . . . . 511 820 180 1017 645 225 354 . . . . . . . . . . Traps 7268 | . . . . . . . . . . 14 807 433 229 697 723 2406 909 368 136 546 Machine Analysis 9646 | . . . . . . . 813 645 225 666 807 433 229 697 723 2410 909 368 136 585 Jamming 393 | . . . . . . . . . . . . . . . . . . . . 393 Robot Analysis Total 11 | . . . . . 3 . . 1 . 1 . . . . 1 . 3 . . 2 Derelict Logs Recovered 4 | . . . . 1 . . . . . . 1 1 . 1 . . . . . . Drone Launches . | . . . . . . . . . . . . . . . . . . . . . Drone Recoveries . | . . . . . . . . . . . . . . . . . . . . . Exploration | -11 -10 -10 -10 -9 -8 -8 -8 -6 -6 -6 -6 -6 -6 -5 -5 -4 -4 -4 -4 -4 ------------- Run | Yrd Mat Min Exi Min Mat Sto Rec Fac Was Fac Low Low Zio Pro Fac Fac Ext Cet Arc Hub Turns Passed 12804 | 16 412 212 369 944 820 180 1018 645 225 666 807 433 229 697 723 2410 909 368 136 585 Spaces Moved 7857 | 9 267 111 251 475 355 99 722 421 123 535 539 278 150 420 455 1489 522 195 84 357 Core . | . . . . . . . . . . . . . . . . . . . . . Treads . | . . . . . . . . . . . . . . . . . . . . . Legs 7857 | 9 267 111 251 475 355 99 722 421 123 535 539 278 150 420 455 1489 522 195 84 357 Wheels . | . . . . . . . . . . . . . . . . . . . . . Hover . | . . . . . . . . . . . . . . . . . . . . . Flight . | . . . . . . . . . . . . . . . . . . . . . Fastest Speed 112 | 120 120 120 120 190 120 120 120 120 115 115 115 113 115 115 115 112 125 125 125 125 Average Speed 125 | 120 146 159 146 190 122 120 120 120 121 115 115 114 115 115 115 118 125 125 125 126 Slowest Speed 330 | 120 190 190 190 190 190 120 120 122 122 115 115 115 115 115 115 125 125 125 125 330 Overloaded Moves . | . . . . . . . . . . . . . . . . . . . . . Propulsion Burnouts . | . . . . . . . . . . . . . . . . . . . . . Robots Hopped . | . . . . . . . . . . . . . . . . . . . . . Potential Cave-ins . | . . . . . . . . . . . . . . . . . . . . . Cave-ins Triggered 1 | . . . . . . . . . . . . . . . . . . . . 1 Exploration Rate (%) 48 | 2 43 28 61 93 34 34 95 11 80 21 64 48 14 57 12 43 78 81 81 48 Regions Visited 20 Branch Regions 13 Pre-discovered Areas 2 | . . . . 2 . . . . . . . . . . . . . . . . Known Exits Taken 8 | . 1 . . . 1 1 1 . . 1 . . . . 1 1 1 . . . Unknown Exits Taken 10 | 1 . 1 1 1 . . . . . . 1 1 1 1 . . . 1 1 . Scrap Searched 6 | . . 1 . 2 . . . . . . 1 . 1 1 . . . . . . Spaces Dug 54 | . . . . . . . . . . . . . . . 9 42 . . . 3 Terrain Destroyed 415 | . . . . . . . . . . . . . . . 17 143 45 10 4 196 Melee 49 | . . . . . . . . . . . . . . . 9 37 . . . 3 Projectile 162 | . . . . . . . . . . . . . . . 8 63 45 10 4 32 AOE 204 | . . . . . . . . . . . . . . . . 43 . . . 161 Terrain Rammed . | . . . . . . . . . . . . . . . . . . . . . Walls Destroyed . | . . . . . . . . . . . . . . . . . . . . . Machines Disabled . | . . . . . . . . . . . . . . . . . . . . . Actions | -11 -10 -10 -10 -9 -8 -8 -8 -6 -6 -6 -6 -6 -6 -5 -5 -4 -4 -4 -4 -4 --------- Run | Yrd Mat Min Exi Min Mat Sto Rec Fac Was Fac Low Low Zio Pro Fac Fac Ext Cet Arc Hub Total 9886 | 12 289 137 252 497 702 124 834 499 173 568 627 343 177 534 629 1980 689 287 105 428 Wait 1113 | . 1 17 . 12 291 2 40 30 11 13 15 18 14 16 137 337 82 40 15 22 Move 7837 | 8 266 110 250 474 354 98 721 421 122 534 538 277 149 419 454 1488 520 194 83 357 Hop . | . . . . . . . . . . . . . . . . . . . . . Pick Up 32 | 1 1 1 . 1 2 . 4 . 5 . 1 . 1 1 2 7 3 2 . . Fast Attach 50 | 3 8 1 1 2 4 5 2 1 1 3 . 4 . . . 7 . 4 . 4 Attach 3 | . . . . . . 1 1 . . . . . . . 1 . . . . . Detach 2 | . . . . . 1 . . . . . . . . . . 1 . . . . Swap 56 | . 3 . . . 6 . . 5 3 1 . . . . 10 17 3 3 . 5 Drop 79 | . 10 2 1 1 10 . 2 3 8 3 1 4 1 1 6 15 3 7 . 1 Fire 327 | . . 4 . 7 20 14 16 24 12 7 40 19 12 40 3 36 33 13 4 23 Melee 54 | . . . . . . . . . . . . . . . 9 37 5 . . 3 Ram . | . . . . . . . . . . . . . . . . . . . . . Kick . | . . . . . . . . . . . . . . . . . . . . . Crush . | . . . . . . . . . . . . . . . . . . . . . Escape Stasis 3 | . . . . . . . . . . 2 . . . . . . 1 . . . Rewire 64 | . . . . . . . 28 . . . . . . 16 . . 20 . . . Trap . | . . . . . . . . . . . . . . . . . . . . . Miscellaneous 266 | . . 2 . . 14 4 20 15 11 5 32 21 . 41 7 35 19 24 3 13 Route ------- -11/Scrapyard -10/Materials (discovered 4 exits: *Mat x3 / *Min) -10/Mines (discovered 2 exits: *Mat / *Exi) -10/Exiles (discovered 2 exits: [*Min x2]) -9/Mines -8/Materials -8/Storage -8/Recycling -6/Factory (discovered 2 exits: Low x2) -6/Waste -6/Factory (discovered 3 exits: *Fac / *Low x2) -6/Lower Caves -6/Lower Caves -6/Zion -5/Proximity Caves -5/Factory (discovered 5 exits: *Fac x4 / Upp) -4/Factory (discovered 6 exits: [*Res] / *Upp x2 / *Ext x2 / Arm) -4/Extension (discovered 3 exits: [*Res x2] / *Cet) -4/Cetus (discovered 2 exits: [*Res] / *Arc) -4/Archives (discovered 3 exits: [*Res] / *Hub x2) -4/Hub_04(d) (discovered 2 exits: [*Res x2]) History --------- Turn | Location | Event 1 | -11/Scrapyard | Discovered new exit (range 1) 3 | -11/Scrapyard | Upgraded with Propulsion slot (x1) 3 | -11/Scrapyard | Upgraded with Weapon slot (x3) 17 | -11/Scrapyard | Entered Materials 18 | -10/Materials | Met a group of wandering Federalists 198 | -10/Materials | Discovered new exit (range 3) 213 | -10/Materials | Discovered new exit (range 16) 286 | -10/Materials | Identified exit to Mines 286 | -10/Materials | Identified exit to Materials 429 | -10/Materials | Entered Mines 448 | -10/Mines | Discovered exit to Materials (range 4) 453 | -10/Mines | Met a Derelict testing a Signal Generator 523 | -10/Mines | Build established: Hacker-Gunner 534 | -10/Mines | Found a Scrap Suit stashed away for nefarious purposes 564 | -10/Mines | Found a damaged Exp. Sensor Array with a note attached 568 | -10/Mines | Found Prototype Device 568 | -10/Mines | Identified Exp. Sensor Array 637 | -10/Mines | Deemed a non-threat by the Exiles lab entrance 637 | -10/Mines | Discovered new exit (range 5) 641 | -10/Mines | Entered Exiles 641 | -10/Exiles | Accompanied by 1 ally 657 | -10/Exiles | Discovered new exit (range 15) 671 | -10/Exiles | Met 8R-AWN 692 | -10/Exiles | Met EX-HEX 727 | -10/Exiles | Met EX-BIN 789 | -10/Exiles | Aligned with FarCom system 790 | -10/Exiles | Given EX-Vault access code 818 | -10/Exiles | Opened EX-Vault 828 | -10/Exiles | Found Field Lobotomy Kit 867 | -10/Exiles | Warned to stay clear of 0b10 Research branches 924 | -10/Exiles | Met EX-DEC 989 | -10/Exiles | Discovered new exit (range 14) 1010 | -10/Exiles | Left Exiles lab with Field Lobotomy Kit 1010 | -10/Exiles | Entered Mines 1010 | -9/Mines | Accompanied by 1 ally 1011 | -9/Mines | Learned location of Storage (-8) 1012 | -9/Mines | Reached level 2 1024 | -9/Mines | Upgraded with Utility slot (x1) 1054 | -9/Mines | Assembled infested the area 1077 | -9/Mines | Assimilated G-47 Trooper with FLK Orb 1316 | -9/Mines | Build established: Hacker-Skirmisher 1418 | -9/Mines | Learned location of Zion (-6) 1431 | -9/Mines | Received a Rocket Launcher from a helpful Derelict 1718 | -9/Mines | Reached level 3 1849 | -9/Mines | Discovered new exit (range 15) 1954 | -9/Mines | Entered Materials 1956 | -8/Materials | Reached level 4 1956 | -8/Materials | Reached level 5 1956 | -8/Materials | Upgraded with Propulsion slot (x1) 1985 | -8/Materials | Identified exit to Storage 2374 | -8/Materials | Reached level 6 2379 | -8/Materials | Upgraded with Utility slot (x1) 2620 | -8/Materials | Reached level 7 2624 | -8/Materials | Upgraded with Utility slot (x1) 2774 | -8/Materials | Entered Storage 2782 | -8/Storage | Found Prototype Processor 2782 | -8/Storage | Identified Exp. Targeting Computer 2794 | -8/Storage | Met a pair of Derelict thieves 2831 | -8/Storage | Reached level 8 2832 | -8/Storage | Upgraded with Utility slot (x1) 2844 | -8/Storage | Identified exit to Recycling 2891 | -8/Storage | Assimilated Y-45 Defender with FLK Orb 2950 | -8/Storage | Used back door to open Recycling access 2954 | -8/Storage | Entered Recycling 2956 | -8/Recycling | Reached level 9 2959 | -8/Recycling | Upgraded with Propulsion slot (x1) 3104 | -8/Recycling | Scanned before Scraplab entrance 3238 | -8/Recycling | Identified exit to Factory 3457 | -8/Recycling | Build established: Commander-Skirmisher 3739 | -8/Recycling | Discovered new exit (range 11) 3743 | -8/Recycling | Entered Scraplab 3747 | -8/Recycling | Angered Scraplab inhabitants 3824 | -8/Recycling | Lost 4 allies 3972 | -8/Recycling | Entered Factory 3972 | -6/Factory | Accompanied by 2 allies 3974 | -6/Factory | Reached level 10 3974 | -6/Factory | Reached level 11 3974 | -6/Factory | Reached level 12 3974 | -6/Factory | Upgraded with Utility slot (x1) 4056 | -6/Factory | Build established: Hacker-Skirmisher 4115 | -6/Factory | Identified exit to Lower Caves 4133 | -6/Factory | Reached level 13 4468 | -6/Factory | Build established: Hacker-Gunner 4617 | -6/Factory | Sucked down chute 4617 | -6/Factory | Entered Waste 4618 | -6/Waste | Met a frightened Derelict 4627 | -6/Waste | Spotted C-40 Crusher 4638 | -6/Waste | Spotted C-40 Crusher 4673 | -6/Waste | Destroyed C-40 Crusher 4687 | -6/Waste | Warlord forces began an assault 4689 | -6/Waste | Allies destroyed C-40 Crusher 4709 | -6/Waste | Spotted C-40 Crusher 4711 | -6/Waste | Allies destroyed C-40 Crusher 4723 | -6/Waste | Spotted C-40 Crusher 4727 | -6/Waste | Spotted C-40 Crusher 4729 | -6/Waste | Allies destroyed C-40 Crusher 4730 | -6/Waste | Spotted C-40 Crusher 4730 | -6/Waste | Allies destroyed C-40 Crusher 4734 | -6/Waste | Allies destroyed C-40 Crusher 4804 | -6/Waste | Discovered new exit (range 12) 4842 | -6/Waste | Entered Factory 4842 | -6/Factory | Accompanied by 18 allies 4962 | -6/Factory | Reached level 14 5209 | -6/Factory | Reached level 15 5256 | -6/Factory | Lost 4 allies 5305 | -6/Factory | Discovered new exit (range 4) 5405 | -6/Factory | Spotted B-75 Beast 5411 | -6/Factory | Garrison activated, responded to threat 5414 | -6/Factory | Reached level 16 5421 | -6/Factory | Reached level 17 5421 | -6/Factory | Upgraded with Utility slot (x1) 5475 | -6/Factory | Lost 9 allies 5508 | -6/Factory | Entered Lower Caves 5611 | -6/Lower Caves | Learned location of 1 exit from Factory 5784 | -6/Lower Caves | Attracted the attention of an 0b10 base 6064 | -6/Lower Caves | Encountered a Warlord checkpoint 6202 | -6/Lower Caves | Reached level 18 6271 | -6/Lower Caves | Discovered new exit (range 10) 6315 | -6/Lower Caves | Entered another Lower Caves area 6356 | -6/Lower Caves | Learned Factory non-interactive machine intel 6499 | -6/Lower Caves | Attracted the attention of an 0b10 checkpoint 6706 | -6/Lower Caves | Acquired the password to a Derelict Tinkerer's latest research 6706 | -6/Lower Caves | Discovered new exit (range 5) 6730 | -6/Lower Caves | Found Prototype Special Weapon 6730 | -6/Lower Caves | Identified Molecular Deconstructor 6748 | -6/Lower Caves | Entered Zion 6778 | -6/Zion | Acquired unknown access codes intercepted by a Zionite 6791 | -6/Zion | Gained Derelict followers 6814 | -6/Zion | Discovered new exit (range 12) 6832 | -6/Zion | Found CR-A16's Pointy Stick 6881 | -6/Zion | System corruption cleaned by Quarantine Array 6886 | -6/Zion | Attacked by Zionites 6886 | -6/Zion | Spotted VA-ROA(B) 6886 | -6/Zion | Spotted 0P-Z84(B) 6922 | -6/Zion | Core integrity fell below 50% 6977 | -6/Zion | Entered Proximity Caves 6979 | -5/Proximity Caves | Reached level 19 7002 | -5/Proximity Caves | Attracted the attention of an 0b10 outpost 7046 | -5/Proximity Caves | Reached level 20 7067 | -5/Proximity Caves | Destroyed 7 combat bots 7183 | -5/Proximity Caves | Core integrity fell below 20% 7409 | -5/Proximity Caves | Attracted the attention of an 0b10 checkpoint 7663 | -5/Proximity Caves | Discovered new exit (range 9) 7674 | -5/Proximity Caves | Entered Factory 7675 | -5/Factory | Identified exit to Upper Caves 7676 | -5/Factory | Loaded intel: 279 non-interactive machine locations 7676 | -5/Factory | Reached level 21 7759 | -5/Factory | Upgraded with Power slot (x1) 7810 | -5/Factory | Identified exit to Factory 8397 | -5/Factory | Entered another Factory area 8398 | -4/Factory | Identified exit to Armory 8399 | -4/Factory | Reached level 22 8552 | -4/Factory | Build established: Hacker-Assassin 8752 | -4/Factory | Reached level 23 9102 | -4/Factory | Discovered new exit (range 6) 9321 | -4/Factory | Identified exit to Upper Caves 9321 | -4/Factory | Identified exit to Extension 9400 | -4/Factory | Repaired Imp. Medium Armor Plating 9791 | -4/Factory | Reached level 24 10077 | -4/Factory | Build established: Hacker-Gunner 10387 | -4/Factory | Watched by a mysterious "MATRIX" hacker. 10690 | -4/Factory | Build established: Hacker-Assassin 10807 | -4/Factory | Entered Extension 10893 | -4/Extension | Rescued a captive Derelict 10900 | -4/Extension | Rescued a captive Derelict 10948 | -4/Extension | Reached level 25 11091 | -4/Extension | Rescued a captive Derelict 11109 | -4/Extension | Spotted B-86 Titan 11119 | -4/Extension | Destroyed B-86 Titan 11128 | -4/Extension | Spotted B-86 Titan 11144 | -4/Extension | Destroyed B-86 Titan 11187 | -4/Extension | Discovered new exit (range 3) 11257 | -4/Extension | Identified exit to Cetus 11267 | -4/Extension | Rescued a captive Derelict 11307 | -4/Extension | Build established: Hacker-Gunner 11317 | -4/Extension | Rescued a captive Derelict 11318 | -4/Extension | Rescued a captive Derelict 11394 | -4/Extension | Central database locked down 11476 | -4/Extension | Rescued a captive Derelict 11483 | -4/Extension | Rescued a captive Derelict 11659 | -4/Extension | Discovered new exit (range 10) 11716 | -4/Extension | Entered Cetus 11716 | -4/Cetus | Accompanied by 13 allies 11724 | -4/Cetus | Spotted Cetus Guard 11724 | -4/Cetus | Spotted Cetus Guard 11727 | -4/Cetus | Allies destroyed Cetus Guard 11729 | -4/Cetus | Spotted Cetus Guard 11733 | -4/Cetus | Spotted Cetus Guard 11742 | -4/Cetus | Destroyed Cetus Guard 11752 | -4/Cetus | Destroyed Cetus Guard 11765 | -4/Cetus | Allies destroyed Cetus Guard 11782 | -4/Cetus | Lost 6 allies 11921 | -4/Cetus | Discovered new exit (range 19) 11956 | -4/Cetus | Spotted Cetus Guard 11957 | -4/Cetus | Spotted Cetus Guard 11957 | -4/Cetus | Destroyed Cetus Guard 11959 | -4/Cetus | Spotted Cetus Guard 11960 | -4/Cetus | Spotted Cetus Guard 11961 | -4/Cetus | Destroyed Cetus Guard 11961 | -4/Cetus | Destroyed Cetus Guard 11968 | -4/Cetus | Destroyed Cetus Guard 11976 | -4/Cetus | Discovered new exit (range 19) 11987 | -4/Cetus | Met Revision 17 12084 | -4/Cetus | Entered Archives 12084 | -4/Archives | Accompanied by 7 allies 12086 | -4/Archives | Reached level 26 12117 | -4/Archives | Discovered new exit (range 19) 12136 | -4/Archives | Discovered new exit (range 18) 12144 | -4/Archives | Unable to access archive contents 12154 | -4/Archives | Discovered new exit (range 19) 12220 | -4/Archives | Entered Hub_04(d) 12220 | -4/Hub_04(d) | Accompanied by 6 allies 12220 | -4/Hub_04(d) | Discovered new exit (range 11) 12574 | -4/Hub_04(d) | Lost 3 allies 12645 | -4/Hub_04(d) | Discovered new exit (range 16) 12761 | -4/Hub_04(d) | Network Hub disabled 12765 | -4/Hub_04(d) | Spotted Lightning 12766 | -4/Hub_04(d) | Spotted Lightning 12775 | -4/Hub_04(d) | Spotted Lightning 12789 | -4/Hub_04(d) | Destroyed Lightning 12794 | -4/Hub_04(d) | Core integrity fell below 50% 12799 | -4/Hub_04(d) | Crushed by falling debris 12799 | -4/Hub_04(d) | Core integrity fell below 20% 12805 | -4/Hub_04(d) | Destroyed by G-67 Veteran with Plasma Rifle Last Messages --------------- 12795_ Penetrated by Slug. 12795_ EMDS Slug penetrates Wall. 12795_ Penetrated by EMDS Slug. 12797_ Slug penetrates Lightning. 12797_ EMDS Slug penetrates Wall. 12799_ The unstable cave ceiling collapses. 12799_ Crushed by falling debris. 12799_ Protomatter-83 crushed. 12799_ EMDS Slug penetrates Wall. 12800_ Penetrated by EMDS Slug. 12801_ Upgraded: Heat Dissipation (+12) 12801_ Slug penetrates Lightning. 12802_ Penetrated by Slug. 12803_ Critical hit (Burn: +50). 12804_ Penetrated by Slug. 12804_ Slug penetrates G-67 Veteran. 12804_ G-67 Veteran suffers critical hit (Destroy). 12804_ Destroyed Field Laser. 12804_ Slug penetrates G-67 Veteran. 12805_ Penetrated by EMDS Slug. Map ----- +----------------------------------------------------+ | ???????????????????????????????????????? | | ???????????????????????????????????????? | | ???????????????????????????????????????? | | ???????????????????????????????????????? | | ???????????????????????????????????????? | | ???????????????????????????????????????? | | ???????????????????????????????????????? | | ???????????????????????/??#????????????? | | ?????????????????????? ? ????????????? | | ####??????????????Y?? ??????????????? | | #???????????????? ????????????????? | | #??????????????? ??????????????????? | | ###############+##??????????????????? | | # """T"" u #??????????????????# | | # " #????????????????? ? | | + ! #???????????????#"## | | ?# """ ""R k #?????????????? # | | ##?# k ##???????????? # | | ######+####;###;;;;;;###########" # | | k t ^^ ; # | | ^^!!; ; | | ############;#;;;;;;;;;;######%!; # | | ##?????# ! ; % # !!=; # | | ##?????# ; ; ; ;;;;;;; | | ##?????# !;[ ;;;;;;;;;;;;; | | ## ?# ; @; g% ; | | ?#! ; #* g ; | | < i/% ; / ; | | +## ??####;#; !%= ; = ; | | ? ## ??????# ;; ; ; | | ???? ?? Y ; ; ; | | ????? ? ^h #; ; ; | | ?????? ^?^h ??#;! ; " | | ???????^ ?]???#; ; " | | ???????? ?????#; ; " | | ??????????????#;;;;;;;;;;;;;;;;"""" """ | | ??????????????# | | ????????????? / " " ## | | ???????????? # =%##? | | ???????????? ?# !"?? | | ??????????????# " ? | | ??????????????# "#?? | | ???????????????? ????? | | ??""""????????????#"""";;;;;"""""??????? | | ??""""??????????????? ?????????? | | ??""""?????????????????#####???????????? | | ??""""?????????????????????????????????? | | ???????????????????????????????????????? | | ???????????????????????????????????????? | | ???????????????????????????????????????? | +----------------------------------------------------+ Best States ------------- Heat Dissipation 82 Energy Generation 50 Energy Capacity 600 Matter Stores 900 Matter Capacity 900 Sight Range 19 Robot Scan Range 24 Terrain Scan Range 20 Terrain Scan Density 10 Jamming Range 16 EM Shielding 3 Armor Coverage 225 Resistance: KI 40 Resistance: TH 40 Resistance: EX 30 Resistance: EM 20 Resistance: I 20 Resistance: S 20 Resistance: P 20 Phase Shifting 10 Evasion (%) 90 Targeting Accuracy 12 Kinecelleration 40 Offensive Hacking 30 Defensive Hacking 15 Item Schematics ----------------- Cryofiber Web | -8/Recycling | Hacked Trap Scanner | -8/Recycling | Hacked Imp. System Restoration Module | -5/Factory | Hacked Adv. System Restoration Module | -4/Hub_04(d) | Hacked Adv. Trap Extractor | -4/Hub_04(d) | Hacked Robot Schematics ------------------ None Fabricated ------------ Nothing Repaired ---------- Imp. Medium Armor Plating | 36% | -4/Factory Studied --------- None Alien Tech Used ----------------- None Achievements -------------- DATA ERROR: Steam Global Achievement% Heavy Suspicion Organ Harvest Sixth Sense Throw Away The Key We Love MA You May Approach The Wall Challenges ------------ None RPGLIKE | -11 -10 -10 -10 -9 -8 -8 -8 -6 -6 -6 -6 -6 -6 -5 -5 -4 -4 -4 -4 -4 --------- Run | Yrd Mat Min Exi Min Mat Sto Rec Fac Was Fac Low Low Zio Pro Fac Fac Ext Cet Arc Hub Levels Raised 25 | . . . . 2 4 1 1 4 . 4 1 . . 2 1 3 1 . 1 . XP Earned 42721 | 4000 60 986 350 1808 6257 1966 1970 5439 275 4939 1606 939 244 3021 1414 3900 1621 650 328 948 XP Spent 40345 | 3150 825 . . 3020 6000 1475 1500 6030 . 5960 1475 . . 2850 1625 4550 1525 . . 360 Upgrades 80 | 5 6 . . 13 12 2 3 9 . 10 3 . . 3 3 5 4 . . 2 Power Slot 1 | . . . . . . . . . . . . . . . 1 . . . . . Propulsion Slot 3 | 1 . . . . 1 . 1 . . . . . . . . . . . . . Utility Slot 6 | . . . . 1 2 1 . 1 . 1 . . . . . . . . . . Weapon Slot 3 | 3 . . . . . . . . . . . . . . . . . . . . Core Integrity 7 | . 1 . . 3 1 1 . . . 1 . . . . . . . . . . Heat Dissipation 8 | . 1 . . 2 1 . . 1 . . . . . . . . 1 . . 2 Energy Generation 1 | . . . . 1 . . . . . . . . . . . . . . . . Matter Storage 11 | . 1 . . . 1 . 1 . . 2 2 . . . 1 1 2 . . . Inventory Capacity 6 | 1 . . . 1 1 . . 1 . . . . . . . 2 . . . . Sight Range 3 | . . . . . . . . . . 1 . . . . . 1 1 . . . Sensor Range 2 | . . . . 2 . . . . . . . . . . . . . . . . Ranged Accuracy 8 | . . . . 2 2 . . . . 2 . . . 1 . 1 . . . . Hack Attack % 4 | . 1 . . 1 . . . 2 . . . . . . . . . . . . Hack Defense % 3 | . 1 . . . . . . 1 . 1 . . . . . . . . . . KI Resistance % 4 | . 1 . . . 1 . . 1 . . . . . 1 . . . . . . TH Resistance % 4 | . . . . . 2 . . 1 . . . . . . 1 . . . . . EX Resistance % 2 | . . . . . . . 1 . . 1 . . . . . . . . . . KI Damage % 4 | . . . . . . . . 1 . 1 1 . . 1 . . . . . . Protomatter Created 3424 | . . . . . 231 7 277 305 91 122 443 227 . 347 48 437 268 188 77 356 Integrity Restored 5464 | . . 16 . . 275 66 385 336 209 63 707 436 . 951 143 732 349 491 56 249 Core 3707 | . . 12 . . 204 54 242 275 55 42 491 292 . 951 86 480 259 108 46 110 Parts 1757 | . . 4 . . 71 12 143 61 154 21 216 144 . . 57 252 90 383 10 139 Protomatter Decayed 2538 | . 67 . . 9 14 7 113 156 192 350 199 80 70 122 . 164 457 264 . 274 Game ------ Seed CargoZipRifle Manual? 0 Play Time 02:42:16 Cumulative 239.9 hours Start 2026.03.01 @ 21:20:28 End 2026.03.03 @ 22:59:12 Sessions 3 Manual Loads 0 Difficulty Adventurer Special Mode Winter2019/RPGLIKE Game No. 83 Rogue 28 Adventurer 55 Explorer 0 Win Type - Total 16 Types 12/0/4/0/0/0/0/0/0/0 Lore% 64 Gallery% 59 Achievement% 36 Wizard Run 0 Options --------- Layout 0 ASCII 0 Keyboard 1 Movement Vi Keybinds 0 Fullscreen 2 Font 18/SmallcapsGlow Map View 76x50 Zoom Use 0% Tactical HUD 1 Map Filters NONE Filters NONE Steam X RUN: 7a3c20ab-d9b0-448a-806a-06d8af1d09e7